[Event "31st Kavala Open-A 2022"]
[Site "Kavala"]
[Date "2022.08.01"]
[Round "8.8"]
[White "Halkias, Stelios"]
[Black "Tarhan, Adar"]
[Result "1-0"]
[ECO "E05"]
[WhiteElo "2512"]
[BlackElo "2201"]
[Annotator "TA"]
[PlyCount "81"]
[EventDate "2022.07.27"]
[EventType "swiss"]
[EventCountry "GRE"]
[SourceTitle "playchess.com"]
[Source "ChessBase"]
[SourceQuality "1"]
[TimeControl "40/5400+30:1800+30"]

{[%evp 18,81,24,14,14,0,20,5,8,8,12,15,73,80,56,65,74,87,76,85,158,126,289,298,332,344,333,322,329,313,431,435,428,420,689,663,792,824,814,781,860,859,850,847,845,852,804,837,845,837,780,770,1014,966,1009,996,1046,914,2119,2000,29978,29976,29965,3913,29989,29990]} 1. Nf3 {[%emt 0:01:44]} Nf6 {[%emt 0:00:09]} 2. c4 {[%emt 0:00:47]} e6 {[%emt 0:00:06]} 3. g3 {[%emt 0:00:12]} d5 {[%emt 0:00:12]} 4. d4 {[%emt 0:00:10]} Be7 {[%emt 0:00:04]} 5. Bg2 {[%emt 0:00:07]} O-O {[%emt 0:00:07]} 6. O-O {[%emt 0:00:08]} dxc4 {[%emt 0:00:11]} 7. Qc2 {[%emt 0:00:09]} a6 {[%emt 0:00:06]} 8. a4 {[%emt 0:00:14]} Bd7 {[%emt 0:00:05]} 9. Qxc4 {[%emt 0:00:11]} Bc6 {[%emt 0:00:08]} 10. Bf4 {[%emt 0:00:11]} Bd6 {[%emt 0:00:09] E05: Open Catalan: 5 Nf3 Be7.} 11. Qc1 {[%emt 0:00:17]} Nbd7 {[%emt 0:06:20]} 12. Nc3 {[%emt 0:00:43]} Qe7 {[%emt 0:07:26] The position is equal.} 13. a5 {[%emt 0:00:54]} Rfe8 {[%emt 0:02:52]} 14. Re1 {[%emt 0:00:57] [#]} Ne4 $146 {[%emt 0:22:22]} (14... e5 $11 {keeps the balance.} 15. dxe5 Bxe5) ({Predecessor:} 14... Bxf4 15. Qxf4 Bxf3 16. Qxf3 c6 17. Na4 e5 18. dxe5 Nxe5 19. Qc3 Nd5 20. Qc5 Nc7 {1-0 (38) Wojtaszek,R (2687)-Navara,D (2697) Prague 2021}) 15. Ne5 $1 $16 {[%emt 0:34:43]} Bxe5 {[%emt 0:01:23]} 16. dxe5 {[%emt 0:03:13]} Nec5 {[%emt 0:12:51] Hoping for ...Bxg2.} 17. Bxc6 {[%emt 0:04:40]} bxc6 {[%emt 0:00:09] [#]} 18. Ra3 {[%emt 0:03:33] Inhibits Nb3.} Reb8 {[%emt 0:01:22]} (18... Rab8 $142) 19. Rd1 {[%emt 0:03:18]} Rb4 $2 {[%emt 0:02:00] [#] This costs Black the game.} (19... h6 $16 {keeps fighting.}) 20. Na2 $1 $18 {[%emt 0:07:17]} Rb5 {[%emt 0:13:36]} 21. b4 {[%emt 0:04:49]} Nb7 {[%emt 0:00:04]} 22. Qxc6 {[%emt 0:01:26]} Nb8 {[%emt 0:00:03]} 23. Qe4 {[%emt 0:04:42]} Nd7 {[%emt 0:07:08]} 24. Nc3 {[%emt 0:06:33]} Rxb4 {[%emt 0:01:54]} 25. Rxd7 $1 {[%emt 0:00:40]} Qf8 {[%emt 0:00:50]} (25... Rxe4 $142 26. Rxe7 Rc4) 26. Qf3 {[%emt 0:02:35]} Nc5 {[%emt 0:01:19] [#]} 27. Rxf7 {[%emt 0:02:35][%mdl 512]} Kxf7 {[%emt 0:00:16]} 28. Be3+ {[%emt 0:00:18]} Kg6 {[%emt 0:00:09]} 29. Qxf8 {[%emt 0:00:29][%mdl 64] Remove Defender} Rxf8 {[%emt 0:00:04]} 30. Bxc5 {[%emt 0:00:10]} Rfb8 {[%emt 0:00:18]} 31. Bxb4 {[%emt 0:00:07]} Rxb4 {[%emt 0:00:01][%mdl 4096] Endgame KRN-KR} 32. f4 {[%emt 0:01:57]} Kf5 {[%emt 0:00:08]} 33. Kg2 {[%emt 0:00:11]} g5 {[%emt 0:00:11]} 34. e4+ {[%emt 0:00:16]} Kg4 {[%emt 0:00:45]} 35. h3+ {[%emt 0:00:24]} Kh5 {[%emt 0:00:03]} 36. Kf3 {[%emt 0:00:55]} gxf4 {[%emt 0:00:05]} 37. gxf4 {[%emt 0:00:08]} Kh4 {[%emt 0:00:23]} 38. Nd1 {[%emt 0:00:45]} Kxh3 {[%emt 0:00:16]} 39. Rc3 {[%emt 0:00:44]} c5 {[%emt 0:00:11]} 40. Ne3 {[%emt 0:00:00] Threatening mate with Rc1.} Rb5 {[%emt 0:00:00]} 41. Rc1 {[%emt 0:01:59] Weighted Error Value: White=0.04 (flawless) /Black=0.48} 1-0

[Event "31st Kavala Open-A 2022"]
[Site "Kavala"]
[Date "2022.08.01"]
[Round "8.10"]
[White "Trimitzios, Petros"]
[Black "Ladopoulos, Dimitrios"]
[Result "1/2-1/2"]
[ECO "E09"]
[WhiteElo "2369"]
[BlackElo "2335"]
[Annotator "TA"]
[PlyCount "89"]
[EventDate "2022.07.27"]
[EventType "swiss"]
[EventCountry "GRE"]
[SourceTitle "playchess.com"]
[Source "ChessBase"]
[SourceQuality "1"]
[TimeControl "40/5400+30:1800+30"]

{[%evp 24,89,33,34,34,34,34,36,27,20,27,16,26,20,24,23,14,14,21,21,35,3,8,1,7,0,0,0,0,0,0,0,0,0,35,22,22,30,22,23,18,18,17,17,21,0,0,0,0,0,0,0,0,0,0,0,0,-6,-15,-17,-9,-7,-20,-6,0,0,11,0]} 1. d4 {[%emt 0:00:03]} e6 {[%emt 0:04:55]} 2. c4 {[%emt 0:01:03]} d5 {[%emt 0:01:44]} 3. Nf3 {[%emt 0:00:22]} Nf6 {[%emt 0:00:23]} 4. g3 {[%emt 0:00:26]} Bb4+ {[%emt 0:01:36]} 5. Bd2 {[%emt 0:00:20]} Be7 {[%emt 0:00:05]} 6. Bg2 {[%emt 0:00:22]} O-O {[%emt 0:00:26]} 7. O-O {[%emt 0:00:03]} c6 {[%emt 0:02:42]} 8. Qc2 {[%emt 0:00:02]} b6 {[%emt 0:01:16]} 9. Bf4 {[%emt 0:00:02]} Bb7 {[%emt 0:01:22]} 10. Nbd2 {[%emt 0:00:02]} Nbd7 {[%emt 0:01:28]} 11. e4 {[%emt 0:00:01]} Nxe4 {[%emt 0:01:05]} 12. Nxe4 {[%emt 0:00:02]} dxe4 {[%emt 0:00:12]} 13. Qxe4 {[%emt 0:00:03]} Nf6 {[%emt 0:01:50] E09: Closed Catalan: Main Line: 7 Qc2 c6 8 Nbd2.} 14. Qe2 {[%emt 0:00:02]} c5 {[%emt 0:01:57]} 15. Rfd1 {[%emt 0:00:01]} cxd4 {[%emt 0:06:50] White is slightly better.} 16. Nxd4 {[%emt 0:00:01]} Qc8 {[%emt 0:05:51]} 17. Rac1 {[%emt 0:00:01]} Bxg2 {[%emt 0:03:21]} 18. Kxg2 {[%emt 0:00:02]} Qb7+ {[%emt 0:03:39]} 19. Qf3 {[%emt 0:00:01]} Qxf3+ {[%emt 0:00:12]} 20. Kxf3 {[%emt 0:00:02] [#]} Rfc8 $146 {[%emt 0:06:07] Against Nc6} ({Predecessor:} 20... Rfd8 21. Nc6 Rxd1 22. Rxd1 Kf8 23. b4 Ke8 24. a4 a6 25. Nxe7 Kxe7 26. Bd6+ Ke8 27. c5 b5 {½-½ (65) Deepan Chakkravarthy,J (2480)-Navin,K (2369) New Delhi 2010}) 21. b3 {[%emt 0:10:07]} Kf8 {[%emt 0:07:16]} 22. Nb5 {[%emt 0:02:32]} a6 {[%emt 0:06:42]} 23. Nd6 {[%emt 0:00:53]} Rc6 {[%emt 0:00:52]} 24. Ne4 {[%emt 0:00:06]} Nxe4 {[%emt 0:12:20]} 25. Kxe4 {[%emt 0:00:02]} b5 {[%emt 0:00:11]} 26. Be3 {[%emt 0:08:39]} f5+ {[%emt 0:07:20]} 27. Kf3 {[%emt 0:04:55]} Ke8 {[%emt 0:04:34]} 28. Ke2 {[%emt 0:21:50]} e5 {[%emt 0:02:25]} 29. c5 {[%emt 0:00:33]} Kf7 {[%emt 0:02:09]} 30. b4 {[%emt 0:00:18][%cal Oa2a4]} a5 {[%emt 0:03:13]} 31. a4 {[%emt 0:08:35]} Rb8 {[%emt 0:00:46]} 32. bxa5 {[%emt 0:00:48] The position is equal.} bxa4 {[%emt 0:00:45]} 33. Rc4 {[%emt 0:00:20]} a3 {[%emt 0:06:35]} 34. Ra1 {[%emt 0:00:37]} Rb2+ {[%emt 0:00:31]} 35. Kf3 {[%emt 0:00:20]} Rb3 {[%emt 0:01:32]} 36. Ke2 {[%emt 0:00:02]} Rb2+ {[%emt 0:00:23]} 37. Kf3 {[%emt 0:03:04]} Rb3 {[%emt 0:00:03]} 38. Kg2 {[%emt 0:04:46]} g5 {[%emt 0:00:24]} 39. Ra4 {[%emt 0:04:37] [#] Hoping for a6.} f4 $1 {[%emt 0:00:21]} ({Much less strong is} 39... Bxc5 40. Bxc5 Rxc5 41. a6 $16 (41. R1xa3 Rb2 $16)) 40. a6 {[%emt 0:00:00] Bc1 is the strong threat.} fxe3 {[%emt 0:00:00]} 41. a7 {[%emt 0:02:56]} Rc8 {[%emt 0:05:09] White must now prevent ...Ra8.} 42. a8=Q {[%emt 0:00:45]} Rxa8 {[%emt 0:00:02]} 43. Rxa8 {[%emt 0:00:02] [#] Strongly threatening Rc1.} Bxc5 {[%emt 0:02:07]} 44. fxe3 {[%emt 0:00:54]} ({Of course not} 44. Ra5 Bd4 45. Ra2 exf2 46. R5xa3 Rb1 47. Rxf2+ Bxf2 48. Kxf2 h5 $17) 44... g4 {[%emt 0:02:46]} 45. Kf1 {[%emt 0:11:35] Weighted Error Value: White=0.03 (flawless) /Black=0.02 (flawless)} 1/2-1/2

[Event "31st Kavala Open-A 2022"]
[Site "Kavala"]
[Date "2022.08.01"]
[Round "8.11"]
[White "Spyratos, Nikolaos"]
[Black "Zawadzka, Jolanta"]
[Result "0-1"]
[ECO "B40"]
[WhiteElo "2268"]
[BlackElo "2416"]
[Annotator "TA"]
[PlyCount "118"]
[EventDate "2022.07.27"]
[EventType "swiss"]
[EventCountry "GRE"]
[SourceTitle "playchess.com"]
[Source "ChessBase"]
[SourceQuality "1"]
[TimeControl "40/5400+30:1800+30"]

{[%evp 9,118,0,0,0,0,-8,-8,-14,-16,-33,0,-17,20,20,23,-10,17,0,-10,0,0,-24,-25,-47,-49,-67,0,0,35,36,77,72,75,56,111,110,124,121,115,5,14,3,3,-10,-25,-18,-17,-17,-21,-24,-9,-11,-6,-10,-7,-15,-12,-13,-22,-18,-15,-17,-16,-23,-12,-25,-16,-27,0,0,0,-51,-51,-59,-57,-85,-75,-73,-101,-140,-156,-163,-167,-349,-327,-343,-315,-338,-319,-429,-436,-427,-420,-523,-509,-508,-504,-495,-487,-452,-443,-29981,-29982,-29984,-29985,-29989,-29979,-29991,-29992,-29992,-168]} 1. e4 {[%emt 0:00:09]} c5 {[%emt 0:00:08]} 2. Nf3 {[%emt 0:00:31]} e6 {[%emt 0:00:07]} 3. c3 {[%emt 0:01:06]} Nf6 {[%emt 0:00:11]} 4. Bd3 {[%emt 0:00:26]} d5 {[%emt 0:00:49]} 5. e5 {[%emt 0:00:08]} Nfd7 {[%emt 0:00:05]} 6. Bc2 {[%emt 0:00:07] B40: Sicilian: 2...e6, Unusual lines.} c4 {[%emt 0:00:09]} 7. d4 {[%emt 0:01:31]} cxd3 $1 {[%emt 0:00:08]} 8. Bxd3 {[%emt 0:00:06] The position is equal.} Nc6 {[%emt 0:00:51]} 9. Qe2 {[%emt 0:02:03]} Qc7 {[%emt 0:04:03][%cal Rc6e5]} 10. Bf4 {[%emt 0:07:38] [#]} b6 $146 {[%emt 0:09:34]} ({Predecessor:} 10... h6 11. h4 g6 12. Nbd2 Bg7 13. Bb5 a6 14. Bxc6 bxc6 15. O-O a5 16. c4 Ba6 {1-0 (50) Maghsoodloo,P (2698)-Praggnanandhaa,R (2608) Chess.com INT 2021}) 11. O-O {[%emt 0:08:43]} Nc5 {[%emt 0:02:10]} 12. Nbd2 {[%emt 0:01:40][%cal Bb1d2,Bd2b3,Bb3d4][%mdl 32]} (12. Na3 $5 {[%cal Ra3b5]}) 12... Be7 {[%emt 0:02:50]} 13. Rfe1 {[%emt 0:02:16]} Nxd3 {[%emt 0:00:53]} 14. Qxd3 {[%emt 0:00:06]} a5 {[%emt 0:01:48]} 15. a4 {[%emt 0:10:30]} Ba6 {[%emt 0:03:27]} 16. Qb1 {[%emt 0:01:11]} O-O {[%emt 0:02:46]} 17. Nb3 {[%emt 0:00:23]} Rac8 {[%emt 0:06:37]} (17... Rfb8 $15) 18. Nbd4 {[%emt 0:02:50]} Nb8 {[%emt 0:05:20][%cal Bc6b8,Bb8d7,Bd7e5,Be5f7][%mdl 32]} 19. Re3 {[%emt 0:06:57]} Nd7 {[%emt 0:05:04]} 20. Ng5 $1 {[%emt 0:10:25]} Bxg5 {[%emt 0:03:22]} 21. Bxg5 {[%emt 0:00:07]} Rfe8 {[%emt 0:00:26]} (21... Nc5 $1 $14) 22. Qd1 $1 $16 {[%emt 0:06:46]} ({Much weaker is} 22. Rh3 $6 Nf8 $11) 22... Nxe5 {[%emt 0:19:06]} 23. Bf4 $1 {[%emt 0:00:23]} f6 {[%emt 0:00:07]} 24. Qh5 {[%emt 0:02:20]} ({White should play} 24. Bg3 $16) 24... Qf7 $11 {[%emt 0:04:02]} 25. Qxf7+ {[%emt 0:01:25]} Nxf7 {[%emt 0:00:06]} 26. Rxe6 {[%emt 0:06:44]} Rxe6 {[%emt 0:00:06]} 27. Nxe6 {[%emt 0:00:06]} Ne5 {[%emt 0:00:13]} 28. Be3 {[%emt 0:20:33]} Nc4 {[%emt 0:01:00]} 29. Rb1 {[%emt 0:00:32]} Nxe3 {[%emt 0:07:14]} 30. fxe3 {[%emt 0:00:02][%mdl 4096] Endgame KRB-KRN} Rc4 {[%emt 0:01:06]} 31. Nf4 {[%emt 0:04:42]} Bb7 {[%emt 0:06:33]} 32. Rd1 {[%emt 0:00:02]} Rxa4 {[%emt 0:03:59]} 33. Nxd5 {[%emt 0:00:01]} Ra2 {[%emt 0:06:34] Threatens to win with ...Bxd5.} 34. Nxb6 {[%emt 0:00:32] [#]} Bxg2 $1 {[%emt 0:00:07]} 35. Nc4 {[%emt 0:01:22]} Bc6 {[%emt 0:00:14]} 36. Rd6 {[%emt 0:02:30]} Bb5 {[%emt 0:01:09]} 37. Na3 {[%emt 0:00:01]} Be8 {[%emt 0:02:06]} (37... Rxb2 $2 38. Rb6 $18) 38. Rd2 {[%emt 0:00:44]} Kf7 {[%emt 0:00:42]} 39. Kf2 {[%emt 0:00:29]} Ke6 {[%emt 0:00:09]} 40. Kg3 {[%emt 0:00:00]} (40. e4 $11) 40... g5 $15 {[%emt 0:00:00]} 41. c4 {[%emt 0:08:48]} h5 {[%emt 0:02:44][%cal Bh7h5,Bh5h4][%mdl 32]} 42. c5 {[%emt 0:02:21] Black continues to play with concentration.} Ra1 {[%emt 0:02:02]} 43. Nc4 {[%emt 0:02:04]} h4+ {[%emt 0:02:34]} 44. Kf2 {[%emt 0:01:27]} Rh1 {[%emt 0:04:57]} 45. Rd6+ {[%emt 0:00:28] [#]} Ke7 $1 {[%emt 0:00:31]} 46. h3 {[%emt 0:09:22]} (46. Nb6 {was called for.}) 46... Rh2+ {[%emt 0:04:01]} (46... Rxh3 47. Nb6 $17) 47. Kg1 {[%emt 0:00:12] [#]} Rc2 {[%emt 0:00:10]} ({Worse is} 47... Rxh3 48. Nb6 $15) 48. Rd4 {[%emt 0:00:48]} Bd7 {[%emt 0:02:48]} 49. Re4+ {[%emt 0:04:05]} Kf8 {[%emt 0:02:25]} 50. Rd4 {[%emt 0:00:36]} Be6 {[%emt 0:01:20]} 51. Nxa5 {[%emt 0:01:02]} Rxc5 {[%emt 0:00:07]} 52. b4 {[%emt 0:00:06]} Rc1+ {[%emt 0:00:20]} 53. Kg2 {[%emt 0:00:13]} Rc2+ {[%emt 0:00:10]} 54. Kg1 {[%emt 0:00:32]} Bxh3 {[%emt 0:00:24] Hoping for ...g4.} 55. Nc4 {[%emt 0:01:49]} (55. Nb3 $19) 55... g4 {[%emt 0:01:24][%cal Bg5g4,Bg4g3][%mdl 32] Black mates.} 56. Na3 {[%emt 0:02:06]} Rg2+ {[%emt 0:00:34]} 57. Kh1 {[%emt 0:00:06]} Ra2 {[%emt 0:00:31]} 58. Nc4 {[%emt 0:01:03]} g3 {[%emt 0:00:29]} 59. Rd1 {[%emt 0:00:06]} Bg2+ {[%emt 0:00:09] Weighted Error Value: White=0.30/Black=0.07 (flawless)} 0-1

[Event "31st Kavala Open-A 2022"]
[Site "Kavala"]
[Date "2022.08.01"]
[Round "8.12"]
[White "Magalakis, Stefanos"]
[Black "Levin, Guy"]
[Result "0-1"]
[ECO "E16"]
[WhiteElo "2181"]
[BlackElo "2363"]
[Annotator "TA"]
[PlyCount "118"]
[EventDate "2022.07.27"]
[EventType "swiss"]
[EventCountry "GRE"]
[SourceTitle "playchess.com"]
[Source "ChessBase"]
[SourceQuality "1"]
[TimeControl "40/5400+30:1800+30"]

{[%evp 11,117,19,16,16,18,7,21,13,19,18,30,13,27,-7,0,0,0,0,0,0,0,0,0,-29,-31,-56,-70,-58,-64,-87,-74,-81,-89,-89,-77,-104,-106,-140,-143,-197,-130,-159,-166,-141,-85,-121,-22,-45,-47,-47,-19,-50,-25,-92,-92,-92,-92,-166,-166,-166,-150,-140,-92,-161,-92,-92,-92,-144,-92,-106,-86,-282,-111,-341,-322,-244,-227,-339,-242,-3661,-5779,-790,-668,-6783,-9609,-8307,-6709,-11099,-11036,-3274,-1782,-29972,-29973,-29973,-29973,-29973,-29974,-29974,-29974,-29974,-29975,-29975,-29976,-29976,-29976,-29984,-29985,-29999]} 1. Nf3 {[%emt 0:00:04]} d5 {[%emt 0:00:05]} 2. g3 {[%emt 0:00:08]} b6 {[%emt 0:00:05]} 3. Bg2 {[%emt 0:00:28]} Bb7 {[%emt 0:00:05]} 4. d4 {[%emt 0:01:05]} Nf6 {[%emt 0:00:09]} 5. O-O {[%emt 0:00:15]} e6 {[%emt 0:00:10]} 6. c4 {[%emt 0:02:45]} dxc4 {[%emt 0:00:06]} 7. Qa4+ {[%emt 0:01:05] E16: Queen's Indian: 4 g3 Bb7 5 Bg2 Bb4+.} Nbd7 {[%emt 0:00:39]} 8. Ne5 {[%emt 0:09:21]} Bxg2 {[%emt 0:02:07]} 9. Kxg2 {[%emt 0:00:04] The position is equal.} a6 {[%emt 0:08:29]} 10. Qc6 {[%emt 0:21:22]} Be7 {[%emt 0:01:29]} 11. Nxc4 {[%emt 0:16:25]} O-O {[%emt 0:00:39] [#]} 12. Bf4 $146 {[%emt 0:02:16]} ({Predecessor:} 12. Nc3 Rc8 13. Rd1 b5 14. Ne5 b4 15. Nxd7 Qxd7 16. Qxd7 Nxd7 17. Na4 c5 18. d5 exd5 19. Rxd5 {½-½ (38) Pawlowski,W (2122)-Pohjosmaki,R (2247) ICCF email 2012}) 12... Nd5 {[%emt 0:35:27]} 13. Nc3 {[%emt 0:05:01]} Nxf4+ {[%emt 0:03:20]} 14. gxf4 {[%emt 0:00:12]} b5 {[%emt 0:01:50]} 15. Ne5 {[%emt 0:05:16]} Nxe5 {[%emt 0:00:25]} 16. dxe5 {[%emt 0:00:05]} Qd2 {[%emt 0:01:32][%csl LRb2,LRf4]} 17. Qxc7 {[%emt 0:03:45]} Qxb2 {[%emt 0:08:35]} 18. Rab1 {[%emt 0:13:09]} Qc2 {[%emt 0:00:39]} 19. Qxe7 {[%emt 0:03:49] Black must now prevent Rfc1.} Qxc3 {[%emt 0:00:28]} 20. Qb4 {[%emt 0:03:20]} Qc2 {[%emt 0:02:23][%csl LRa2,LRe2]} 21. Rb2 {[%emt 0:01:14]} Qg6+ {[%emt 0:00:09]} 22. Kh1 {[%emt 0:00:29]} Rfc8 {[%emt 0:02:03]} 23. Rg1 {[%emt 0:05:04]} Qf5 {[%emt 0:00:45]} 24. Rg5 {[%emt 0:01:51]} Qh3 {[%emt 0:00:03]} 25. Rb1 {[%emt 0:00:13] Prevents Qf1+.} (25. Rg1 $17) 25... Rc4 {[%emt 0:00:35]} (25... Qh4 $19 26. Qe4 Qxf2) 26. Qe7 {[%emt 0:02:04][%cal Og5g7] Intending Rxg7+! and mate.} g6 {[%emt 0:01:18]} (26... Rxf4 27. Rxg7+ $1 Kxg7 28. Qg5+ Kf8 29. Qxf4 $11) 27. Qf6 {[%emt 0:00:42]} Rac8 {[%emt 0:01:15]} ({Better is} 27... Qc3 {...Qd2 is the strong threat.} 28. Rd1 Rd4) 28. Rbg1 {[%emt 0:00:17]} Rc1 {[%emt 0:08:15]} (28... Qh6 $17 {And now ...Qg7 would win.} 29. f5 Rh4) 29. Rxc1 {[%emt 0:01:30]} Rxc1+ $11 {[%emt 0:00:02][%mdl 4096] Endgame KQR-KQR} 30. Rg1 {[%emt 0:00:01]} Rc8 {[%emt 0:00:21]} 31. Rd1 {[%emt 0:00:27]} Qf5 $40 {[%emt 0:00:15][%mdl 128] Black attacks.} (31... h6 {keeps more tension.} 32. Kg1 b4 33. f3 Qf5) 32. Qxf5 {[%emt 0:00:12]} (32. Kg2 $11 {keeps the balance.}) 32... gxf5 {[%emt 0:00:02] KR-KR} 33. Rd6 {[%emt 0:00:34]} a5 $1 {[%emt 0:00:17]} 34. Ra6 {[%emt 0:01:27]} (34. Rb6 $17 Rc2 35. Rxb5 Rxe2 36. Rxa5 Rxf2 37. Ra4) 34... a4 $19 {[%emt 0:00:07]} 35. Rb6 {[%emt 0:00:06]} Rc2 $1 {[%emt 0:00:11][%csl LRa2,LRe2]} 36. Rxb5 {[%emt 0:01:41]} Rxe2 {[%emt 0:00:21]} (36... Rxa2 $142 37. Ra5 Rxe2 38. Rxa4 Rxf2) 37. a3 {[%emt 0:00:36]} (37. Kg2 $17 {might work better.}) 37... Ra2 {[%emt 0:00:19]} ({Worse is} 37... Rxf2 38. Rb4 $17) (37... Re4 $1 $19 38. Kg2 Rxf4) 38. Kg2 {[%emt 0:00:32]} Rxa3 {[%emt 0:00:02]} 39. Ra5 {[%emt 0:00:06] [#]} ({White must play} 39. Rb8+ Kg7 40. Ra8) 39... Ra1 {[%emt 0:02:16]} ({Black should try} 39... Kf8 $1 40. Ra7 Ra2) 40. Ra7 {[%emt 0:00:00]} a3 {[%emt 0:00:00][%cal Ba4a3,Ba3a2][%mdl 32]} 41. h3 $2 {[%emt 0:03:12] [#]} (41. Ra8+ $17 Kg7 42. Ra7) 41... Kf8 $1 {[%emt 0:03:07] Threatens to win with ...Ke8.} 42. Kh2 $2 {[%emt 0:05:32]} (42. Kg3 $17) 42... h6 {[%emt 0:15:03]} ({Avoid the trap} 42... a2 $2 43. Ra8+ Ke7 44. Ra7+ Kd8 45. Kg2 $19) 43. Kg2 {[%emt 0:00:58]} Ke8 {[%emt 0:00:21]} 44. Kg3 {[%emt 0:03:26]} (44. h4 {was the only defense.}) 44... Kd8 {[%emt 0:00:23]} ({Don't go for} 44... a2 $2 45. Kf3 $19) 45. Kh4 $2 {[%emt 0:04:32]} (45. Kg2) 45... a2 {[%emt 0:00:12]} 46. Ra3 {[%emt 0:06:33]} Kc7 {[%emt 0:00:13]} 47. Ra8 {[%emt 0:01:02]} Kc6 {[%emt 0:00:21]} 48. Ra5 {[%emt 0:01:42]} Kb6 {[%emt 0:00:07]} 49. Ra8 {[%emt 0:00:06]} Kc5 {[%emt 0:00:05]} 50. Ra4 {[%emt 0:00:09]} Kd5 {[%emt 0:00:10]} 51. f3 {[%emt 0:03:24]} Kc5 {[%emt 0:00:05] Black mates.} 52. Ra7 {[%emt 0:00:12]} Kd4 {[%emt 0:00:18]} 53. Ra3 {[%emt 0:00:06]} Kc4 {[%emt 0:00:09]} 54. Ra8 {[%emt 0:00:06]} Kd3 {[%emt 0:00:16]} 55. Ra3+ {[%emt 0:00:07]} Kd4 {[%emt 0:00:13]} 56. Ra5 {[%emt 0:02:40]} Ke3 {[%emt 0:00:08][%csl LRf3,LRf4]} 57. Ra4 {[%emt 0:00:05]} Kxf3 {[%emt 0:00:19]} 58. Kh5 {[%emt 0:00:17]} Rh1 {[%emt 0:00:12][%cal Rh1h3]} 59. Rxa2 {[%emt 0:00:15]} Rxh3# {[%emt 0:00:06] Weighted Error Value: White=0.62/Black=0.15 (very precise)} 0-1

[Event "31st Kavala Open-A 2022"]
[Site "Kavala"]
[Date "2022.08.01"]
[Round "8.13"]
[White "Markidis, Konstantinos"]
[Black "Koutlas, Nikolaos"]
[Result "1/2-1/2"]
[ECO "B51"]
[WhiteElo "2259"]
[BlackElo "2314"]
[Annotator "TA"]
[PlyCount "58"]
[EventDate "2022.07.27"]
[EventType "swiss"]
[EventCountry "GRE"]
[SourceTitle "playchess.com"]
[Source "ChessBase"]
[SourceQuality "1"]
[TimeControl "40/5400+30:1800+30"]

{[%evp 9,58,6,8,18,16,8,11,7,12,0,0,0,0,0,0,0,0,0,0,-11,0,0,0,-8,-14,-10,0,0,0,0,0,0,0,0,0,-17,0,0,0,-69,-42,-41,0,0,40,0,0,0,29,12,36]} 1. e4 {[%emt 0:01:38]} c5 {[%emt 0:00:08]} 2. Nf3 {[%emt 0:00:36]} d6 {[%emt 0:00:09]} 3. Bb5+ {[%emt 0:00:47]} Nd7 {[%emt 0:00:09]} 4. c3 {[%emt 0:00:43]} Ngf6 {[%emt 0:00:17]} 5. Bd3 {[%emt 0:00:18]} g6 {[%emt 0:00:28]} 6. Bc2 {[%emt 0:00:17] B51: Sicilian: Moscow Variation (3 Bb5+) without 3...Bd7.} b5 {[%emt 0:00:19]} 7. d4 {[%emt 0:01:28] Threatening e5.} cxd4 {[%emt 0:00:22]} 8. cxd4 {[%emt 0:00:07]} Bb7 {[%emt 0:00:34]} 9. Nbd2 {[%emt 0:01:59]} Bg7 {[%emt 0:00:23]} 10. O-O {[%emt 0:01:54]} O-O {[%emt 0:01:30]} 11. Re1 {[%emt 0:02:46]} e5 {[%emt 0:01:11]} 12. d5 {[%emt 0:00:49]} a5 {[%emt 0:00:47] [#]} 13. a4 $146 {[%emt 0:05:14]} ({Predecessor:} 13. h3 Ba6 14. Nf1 Nc5 15. Ng3 Nfd7 16. Bg5 Qb8 17. Qd2 b4 18. b3 {1-0 (41) Jobava,B (2588)-Indjic,A (2613) Bucharest 2022}) 13... bxa4 {[%emt 0:04:42]} 14. Rxa4 {[%emt 0:00:41]} Ba6 {[%emt 0:03:19]} 15. Ra3 {[%emt 0:03:25]} Qb6 {[%emt 0:04:53]} 16. h3 {[%emt 0:01:37] Inhibits Ng4.} Rfc8 {[%emt 0:08:18]} 17. Nf1 {[%emt 0:16:39]} Bxf1 {[%emt 0:23:19]} 18. Rxf1 {[%emt 0:04:48]} Bh6 {[%emt 0:01:39] [#] ...Bxc1 is the strong threat.} 19. Rb3 {[%emt 0:13:25]} ({Of course not} 19. Bxh6 Qxb2 20. Qa1 Qxc2 $15) 19... Qxb3 {[%emt 0:00:17]} 20. Bxb3 {[%emt 0:00:15]} Bxc1 {[%emt 0:00:16]} 21. Ba4 {[%emt 0:03:57]} Bxb2 {[%emt 0:01:15] Hoping for ...Nc5.} 22. Bc6 {[%emt 0:05:20]} Ra7 {[%emt 0:07:15]} 23. Qe2 {[%emt 0:07:26]} Ba3 {[%emt 0:01:32][%cal Bb2a3,Ba3b4,Bb4c5][%mdl 32]} 24. Rb1 {[%emt 0:02:56]} (24. Nd2 $11) 24... Bb4 {[%emt 0:05:11]} (24... Bc5 $5 {[%cal Ra5a4]}) 25. Ne1 {[%emt 0:02:40]} Nc5 {[%emt 0:06:19]} 26. f3 {[%emt 0:00:36]} Ncd7 {[%emt 0:03:21]} 27. Qa2 {[%emt 0:02:14][%mdl 1024] [#] Threatens to win with Rxb4. White has compensation.} Bc5+ {[%emt 0:03:30]} 28. Kh2 {[%emt 0:00:09]} Nb8 {[%emt 0:00:45]} (28... a4 $5) 29. Bb5 {[%emt 0:00:31]} Na6 {[%emt 0:01:01] Weighted Error Value: White=0.09 (flawless) /Black=0.07 (flawless)} 1/2-1/2